fUST/lending_fUST_20250621
["ID","MTS","AMOUNT","RATE_DAILY","PERIOD"]
[366817347,1750473042110,-593.3598707,0.00022932,2]
[366817348,1750473042121,-156.8146003,0.00022932,2]
[366817349,1750473042130,-154.7201342,0.00022932,2]
[366817350,1750473042140,-184.1110067,0.00022932,2]
[366817351,1750473042150,-150.0,0.00022936,2]
[366817352,1750473042160,-245.688,0.00022936,2]
[366817353,1750473042170,-176.259,0.00022936,2]
[366817354,1750473042181,-24624.81136413,0.00022951,2]
[366817355,1750473042191,-502.77459037,0.00022952,2]
[366817356,1750473042201,-719.15,0.00022996,4]
[366817357,1750473042211,-160.0,0.00023,3]
[366817358,1750473042221,-230.06456406,0.00023,3]
[366817359,1750473042230,-160.0,0.00023,3]
[366817360,1750473042239,-200.0,0.00023,2]
[366817361,1750473042250,-181.18,0.00023,3]
[366817362,1750473042260,-500.92047213,0.00023,8]
[366817363,1750473042269,-501.63540721,0.00023,8]
[366817364,1750473042279,-168.0,0.00023,7]
[366817365,1750473042289,-2874.84657783,0.00023003,8]
[366817366,1750473042299,-215.0738,0.00023013,2]
[366817367,1750473042310,-565.76,0.00023013,2]
[366817368,1750473042320,-460.0,0.00023013,2]
[366817369,1750473042334,-460.0,0.00023013,2]
[366817370,1750473042345,-460.0,0.00023013,2]
[366817371,1750473042355,-496.45,0.00023013,2]
[366817372,1750473042365,-545.145444,0.00023013,2]
[366817373,1750473042375,-460.0,0.00023013,2]
[366817374,1750473042385,-1000.0,0.00023031,2]
[366817375,1750473042395,-315.09636162,0.00023036,2]
[366817376,1750473042405,-356.7414187,0.00023072,2]
[366817377,1750473042416,-155.74044168,0.00023073,2]
[366817378,1750473042426,-151.0,0.00023073,7]
[366817379,1750473042436,-289.187576,0.00023073,7]
[366817380,1750473042446,-151.0,0.00023073,7]
[366817381,1750473042455,-168.0,0.00023077,2]
[366817382,1750473042466,-168.0,0.00023095,2]
[366817383,1750473042475,-719.15,0.00023096,3]
[366817384,1750473042485,-269.04368007,0.0002313,2]
[366817385,1750473042495,-294.929524,0.00023141,7]
[366817386,1750473042505,-151.0,0.00023141,7]
[366817387,1750473042515,-2874.84657783,0.00023141,8]
[366817388,1750473042525,-600.0,0.00023145,2]
[366817389,1750473042534,-293.85068442,0.00023148,2]
[366817390,1750473042544,-719.15,0.00023196,4]
[366817391,1750473042553,-501.8160154,0.00023211,2]
[366817392,1750473042564,-151.0,0.00023247,2]
[366817393,1750473042573,-176.069672,0.00023247,7]
[366817394,1750473042583,-176.069672,0.00023247,7]
[366817395,1750473042593,-151.0,0.00023279,7]
[366817396,1750473042602,-151.0,0.00023279,7]
[366817397,1750473042611,-2874.84657783,0.00023279,8]
[366817398,1750473042621,-565.76,0.00023287,2]
[366817399,1750473042630,-460.0,0.00023287,2]
[366817400,1750473042640,-460.0,0.00023287,2]
[366817401,1750473042649,-460.0,0.00023287,2]
[366817402,1750473042659,-496.45,0.00023287,2]
[366817403,1750473042668,-157.22257277,0.00023287,2]
[366817404,1750473042678,-719.15,0.00023296,4]
[366817405,1750473042687,-160.0,0.00023299,2]
[366817406,1750473042696,-43757.3213423,0.000233,2]
[366817407,1750473042706,-151.0,0.000233,7]
[366817408,1750473042716,-151.0,0.000233,7]
[366817409,1750473042725,-151.0,0.000233,2]
[366817410,1750473042735,-240.971046,0.000233,7]
[366817411,1750473042745,-176.069672,0.000233,7]
[366817412,1750473042754,-176.069672,0.000233,7]
[366817413,1750473042764,-151.0,0.000233,7]
[366817414,1750473042773,-151.0,0.000233,7]
[366817415,1750473042783,-168.0,0.00023312,2]
[366817416,1750473042793,-500.0,0.00023383,2]
[366817417,1750473042802,-600.0,0.00023386,2]
[366817418,1750473042812,-719.15,0.00023396,5]
[366817419,1750473042822,-2874.84657783,0.00023417,9]
[366817420,1750473042832,-500.0,0.00023431,2]
[366817421,1750473042841,-420.0,0.00023481,2]
[366817422,1750473042851,-356.7414187,0.00023486,2]
[366817423,1750473042860,-719.15,0.00023496,2]
[366817424,1750473042869,-500.0,0.00023501,2]
[366817425,1750473042879,-500.0,0.00023551,2]
[366817426,1750473042889,-2874.84657783,0.00023555,9]
[366817427,1750473042898,-565.76,0.00023561,2]
[366817428,1750473042908,-460.0,0.00023561,2]
[366817429,1750473042917,-487.19331358,0.00023561,2]
[366817430,1750473042927,-460.0,0.00023561,2]
[366817431,1750473042937,-496.45,0.00023561,2]
[366817432,1750473042947,-269.04368007,0.00023574,2]
[366817433,1750473042956,-1500.0,0.00023579,2]
[366817435,1750473042966,-6267.58066435,0.0002358,2]
[366817436,1750473042976,-719.15,0.00023596,4]
[366817437,1750473042986,-151.0,0.00023611,7]
[366817439,1750473042995,-237.173738,0.00023611,7]
[366817440,1750473043005,-151.0,0.00023611,7]
[366817441,1750473043015,-234.53242,0.00023611,7]
[366817442,1750473043025,-151.0,0.00023621,2]
[366817443,1750473043035,-176.069672,0.00023621,7]
[366817444,1750473043045,-176.069672,0.00023621,7]
[366817446,1750473043055,-1064.87197581,0.00023627,2]
[366817447,1750473043064,-168.0,0.00023629,2]
[366817449,1750473043073,-17891.36184616,0.0002366,2]
[366817450,1750473043083,-6834.15963053,0.00023687,2]
[366817451,1750473043092,-2874.84657783,0.00023693,9]
[366817452,1750473043101,-719.15,0.00023696,3]
[366817454,1750473043111,-153.0,0.00023703,2]
[366817457,1750473043121,-153.0,0.00023703,2]
[366817459,1750473043131,-153.0,0.00023703,2]
[366817461,1750473043141,-153.0,0.00023703,2]
[366817462,1750473043150,-153.0,0.00023704,2]
[366817463,1750473043160,-153.0,0.00023704,2]
[366817464,1750473043170,-153.0,0.00023704,2]
[366817465,1750473043179,-153.0,0.00023704,2]
[366817466,1750473043189,-153.0,0.00023704,2]
[366817467,1750473043199,-153.0,0.00023704,2]
[366817468,1750473043208,-153.0,0.00023704,2]
[366817469,1750473043218,-153.0,0.00023704,2]
[366817470,1750473043227,-153.0,0.00023706,2]
[366817471,1750473043237,-153.0,0.00023706,2]
[366817472,1750473043247,-153.0,0.00023706,2]
[366817473,1750473043257,-153.0,0.00023706,2]
[366817474,1750473043267,-153.0,0.00023706,2]
[366817475,1750473043276,-153.0,0.00023706,2]
[366817476,1750473043286,-153.0,0.00023706,2]
[366817477,1750473043296,-153.0,0.00023706,2]
[366817478,1750473043306,-153.0,0.00023706,2]
[366817479,1750473043316,-153.0,0.00023706,2]
[366817480,1750473043330,-153.0,0.00023706,2]
[366817481,1750473043340,-153.0,0.00023706,2]
[366817482,1750473043351,-153.0,0.00023708,2]
[366817483,1750473043360,-153.0,0.00023708,2]
[366817484,1750473043369,-153.0,0.00023708,2]
[366817485,1750473043379,-153.0,0.00023708,2]
[366817486,1750473043388,-153.0,0.00023709,2]
[366817487,1750473043398,-153.0,0.00023709,2]
[366817488,1750473043407,-153.0,0.00023709,2]
[366817489,1750473043417,-153.0,0.00023709,2]
[366817490,1750473043426,-153.0,0.00023709,2]
[366817491,1750473043436,-153.0,0.00023709,2]
[366817492,1750473043446,-153.0,0.00023709,2]
[366817493,1750473043456,-153.0,0.00023709,2]
[366817494,1750473043466,-153.0,0.00023711,2]
[366817495,1750473043477,-153.0,0.00023711,2]
[366817496,1750473043487,-153.0,0.00023711,2]
[366817497,1750473043496,-153.0,0.00023711,2]
[366817499,1750473043506,-153.0,0.00023711,2]
[366817500,1750473043516,-153.0,0.00023711,2]
[366817501,1750473043526,-153.0,0.00023711,2]
[366817502,1750473043536,-153.0,0.00023711,2]
[366817503,1750473043546,-153.0,0.00023711,2]
[366817504,1750473043556,-153.0,0.00023711,2]
[366817505,1750473043565,-153.0,0.00023711,2]
[366817506,1750473043576,-153.0,0.00023711,2]
[366817507,1750473043586,-500.0,0.00023756,2]
[366817508,1750473043596,-50411.43844126,0.0002376,2]
[366817509,1750473043606,-151.0,0.0002376,7]
[366817510,1750473043616,-251.941362,0.0002376,2]
[366817511,1750473043626,-176.069672,0.0002376,7]
[366817512,1750473043636,-176.069672,0.0002376,7]
[366817513,1750473043646,-151.0,0.0002376,7]
[366817514,1750473043656,-40538.45823565,0.00023788,2]
[366817515,1750473043666,-719.15,0.00023796,3]
[366817516,1750473043676,-1239.99,0.000238,7]
[366817517,1750473043687,-176.069672,0.00023831,7]
[366817518,1750473043698,-176.069672,0.00023831,7]
[366817519,1750473043708,-151.0,0.00023831,7]
[366817520,1750473043718,-2874.84657783,0.00023831,10]
[366817521,1750473043727,-565.76,0.00023835,2]
[366817522,1750473043737,-460.0,0.00023835,2]
[366817523,1750473043747,-460.0,0.00023835,2]
[366817524,1750473043757,-496.45,0.00023835,2]
[366817525,1750473043767,-500.0,0.00023875,2]
[366817526,1750473043777,-719.15,0.00023896,7]
[366817527,1750473043787,-151.0,0.00023896,7]
[366817528,1750473043797,-200.0,0.000239,2]
[366817529,1750473043807,-206.88,0.000239,4]
[366817530,1750473043817,-175.66,0.000239,4]
[366817531,1750473043827,-209.35,0.000239,4]
[366817532,1750473043837,-162.83339141,0.000239,4]
[366817533,1750473043847,-162.83339141,0.000239,4]
[366817534,1750473043857,-162.83,0.000239,4]
[366817535,1750473043867,-151.0,0.000239,7]
[366817536,1750473043877,-151.0,0.000239,6]
[366817537,1750473043887,-151.0,0.000239,10]
[366817538,1750473043897,-6196.35435834,0.000239,2]
[366817539,1750473043908,-356.7414187,0.000239,2]
[366817540,1750473043918,-4913.86,0.00023914,2]
[366817541,1750473043928,-394.86745861,0.00023918,2]
[366817542,1750473043938,-12492.39244627,0.0002394,7]
[366817543,1750473043949,-151.0,0.0002394,7]
[366817544,1750473043959,-176.069672,0.0002394,7]
[366817545,1750473043969,-176.069672,0.0002394,7]
[366817546,1750473043980,-151.0,0.0002394,7]
[366817547,1750473043990,-500.0,0.00023965,2]
[366817548,1750473044000,-2874.84657783,0.00023969,10]
[366817549,1750473044010,-500.0,0.00023969,2]
[366817550,1750473044020,-500.0,0.00023973,2]
[366817551,1750473044031,-501.0720701,0.00023973,2]
[366817552,1750473044042,-500.0,0.00023973,2]
[366817553,1750473044052,-500.0,0.00023973,2]
[366817554,1750473044062,-153.08200427,0.00023973,2]
[366817555,1750473044072,-500.0,0.00023973,2]
[366817556,1750473044082,-152.21991938,0.00023973,2]
[366817557,1750473044092,-500.0,0.00023973,2]
[366817558,1750473044102,-263.47700735,0.00023973,2]
[366817559,1750473044113,-264.08682166,0.00023973,2]
[366817560,1750473044123,-260.66294866,0.00023973,2]
[366817561,1750473044132,-229.44547959,0.00023973,2]
[366817563,1750473044142,-500.99231854,0.00023973,2]
[366817564,1750473044153,-500.0,0.00023973,2]
[366817565,1750473044163,-500.0,0.00023973,2]
[366817566,1750473044174,-500.0,0.00023973,2]
[366817567,1750473044184,-500.0,0.00023973,2]
[366817568,1750473044196,-500.0,0.00023973,2]
[366817569,1750473044205,-500.0,0.00023973,2]
[366817570,1750473044216,-500.0,0.00023973,2]
[366817571,1750473044226,-500.48147573,0.00023973,2]
[366817572,1750473044236,-500.0,0.00023973,2]
[366817573,1750473044246,-205.31944239,0.00023973,2]
[366817574,1750473044256,-500.0,0.00023973,2]
[366817576,1750473044266,-500.43656433,0.00023973,2]
[366817578,1750473044276,-500.0,0.00023973,2]
[366817580,1750473044286,-600.0,0.00023973,2]
[366817581,1750473044296,-501.0321702,0.00023973,2]
[366817582,1750473044306,-500.47298741,0.00023973,2]
[366817583,1750473044316,-506.32255219,0.00023973,2]
[366817584,1750473044331,-500.0,0.00023973,2]
[366817586,1750473044341,-500.0,0.00023973,2]
[366817588,1750473044355,-500.7793833,0.00023973,2]
[366817589,1750473044367,-500.0,0.00023973,2]
[366817590,1750473044377,-540.9558834,0.00023973,2]
[366817591,1750473044388,-500.0,0.00023973,2]
[366817592,1750473044399,-501.0464664,0.00023973,2]
[366817593,1750473044409,-500.46439135,0.00023973,2]
[366817594,1750473044418,-427.06538794,0.00023973,2]
[366817595,1750473044428,-501.0075154,0.00023973,2]
[366817597,1750473044438,-500.0,0.00023973,2]
[366817599,1750473044448,-501.04249116,0.00023973,2]
[366817601,1750473044458,-160.82142123,0.00023973,2]
[366817603,1750473044468,-500.0,0.00023973,2]
[366817605,1750473044478,-500.92350632,0.00023973,2]
[366817607,1750473044488,-500.47506104,0.00023973,2]
[366817609,1750473044498,-500.0,0.00023973,2]
[366817611,1750473044508,-268.65876723,0.00023973,2]
[366817613,1750473044517,-518.09711297,0.00023973,2]
[366817615,1750473044528,-500.0,0.00023973,2]
[366817617,1750473044538,-500.0,0.00023973,2]
[366817619,1750473044548,-500.0,0.00023973,2]
[366817621,1750473044558,-500.63881092,0.00023973,2]
[366817623,1750473044568,-500.50406835,0.00023973,2]
[366817625,1750473044578,-500.0,0.00023973,2]
[366817638,1750473044699,-501.00085733,0.00023973,2]
[366817640,1750473044710,-501.40809659,0.00023973,2]
[366817642,1750473044721,-500.0,0.00023973,2]
[366817644,1750473044731,-500.0,0.00023973,2]
[366817646,1750473044742,-16706.45110176,0.0002399,2]
[366817648,1750473044751,-719.15,0.00023996,7]
[366817650,1750473044762,-200.9927285,0.00023999,2]
[366817652,1750473044772,-20301.1677744,0.00024,2]
[366817654,1750473044782,-33529.64817883,0.00024,2]
[366817656,1750473044792,-194458.11399587,0.00024,2]
[366817674,1750473044959,-95.29864453,0.00022295,7]
[366817676,1750473044971,-55.70135547,0.00022295,7]
[366817678,1750473044982,-558.42914643,0.00022465,2]
[366817680,1750473044993,-102847.6574266,0.00024,2]
[366817683,1750473045006,-16303.34415618,0.00024,2]
[366817685,1750473045018,-103514.66144243,0.00024,2]
[366818267,1750473095239,1510.0,0.000246,120]
[366818286,1750474118746,163.967922,0.00013699,2]
[366818287,1750474130207,150.0,0.000189,2]
[366818347,1750474232797,-168.0,0.00021269,2]
[366818349,1750474232807,-222.45046631,0.00021798,2]
[366818351,1750474232817,-160.0,0.00021897,2]
[366818353,1750474232826,-836.41202323,0.00021897,2]
[366818355,1750474232836,-424.93363889,0.00021898,2]
[366818357,1750474232845,-160.0,0.00021898,2]
[366818359,1750474232855,-160.0,0.00021898,2]
[366818361,1750474232864,-258.7973527,0.00021918,2]
[366818363,1750474232874,-168.0,0.00022107,2]
[366818365,1750474232884,-232.07792681,0.00022336,2]
[366818367,1750474232894,-160.0,0.00022343,2]
[366818370,1750474232915,-153.73924578,0.00022373,2]
[366818372,1750474232925,-160.0,0.00022378,2]
[366818374,1750474232936,-230.10342898,0.0002238,2]
[366818376,1750474232946,-846.23824438,0.0002238,2]
[366818378,1750474232956,-160.0,0.0002238,2]
[366818380,1750474232967,-160.0,0.0002238,2]
[366818382,1750474232977,-213.55395994,0.0002238,2]
[366818383,1750474232987,-207.4,0.00022427,2]
[366818384,1750474232997,-595.41963664,0.0002244,2]
[366818385,1750474233008,-503.33809829,0.0002244,2]
[366818386,1750474233017,-505.21445041,0.0002244,2]
[366818387,1750474233028,-439.98151827,0.0002244,2]
[366818388,1750474233040,-502.47510702,0.0002244,2]
[366818389,1750474233050,-169.3949609,0.00022465,2]
[366818390,1750474233060,-460.0,0.00022472,2]
[366818391,1750474233070,-460.0,0.00022472,2]
[366818392,1750474233079,-460.0,0.00022472,2]
[366818393,1750474233089,-460.0,0.00022472,2]
[366818394,1750474233099,-540.55098775,0.00022472,2]
[366818395,1750474233110,-134.80543288,0.00022473,2]
[366818396,1750474233125,-4865.19456712,0.00022473,2]
[366818397,1750474233136,-4069.31305849,0.00022473,2]
[366818398,1750474233145,-151.66540298,0.00022473,2]
[366818399,1750474233155,-500.0,0.00022473,2]
[366818400,1750474233165,-500.0,0.00022473,2]
[366818401,1750474233175,-500.0,0.00022473,2]
[366818402,1750474233185,-500.0,0.00022473,2]
[366818404,1750474233195,-500.0,0.00022473,2]
[366818406,1750474233204,-500.0,0.00022473,2]
[366818408,1750474233214,-500.0,0.00022473,2]
[366818410,1750474233224,-500.0,0.00022473,2]
[366818412,1750474233233,-500.0,0.00022473,2]
[366818414,1750474233243,-500.0,0.00022473,2]
[366818416,1750474233253,-500.0,0.00022473,2]
[366818418,1750474233264,-500.0,0.00022473,2]
[366818420,1750474233273,-500.0,0.00022473,2]
[366818422,1750474233282,-500.0,0.00022473,2]
[366818424,1750474233292,-500.0,0.00022473,2]
[366818426,1750474233302,-500.0,0.00022473,2]
[366818428,1750474233311,-568.60067792,0.00022473,2]
[366818430,1750474233321,-500.0,0.00022473,2]
[366818432,1750474233330,-500.0,0.00022473,2]
[366818434,1750474233340,-500.0,0.00022473,2]
[366818436,1750474233350,-500.0,0.00022473,2]
[366818438,1750474233359,-500.0,0.00022473,2]
[366818440,1750474233369,-500.0,0.00022473,2]
[366818442,1750474233379,-500.0,0.00022473,2]
[366818444,1750474233388,-300.0,0.00022473,2]
[366818446,1750474233398,-212.05894571,0.00022473,2]
[366818448,1750474233407,-16711.44947506,0.00022473,2]
[366818450,1750474233417,-460.0,0.00022486,2]
[366818452,1750474233427,-965.0,0.00022492,2]
[366818454,1750474233436,-2161.0,0.00022492,2]
[366818456,1750474233446,-654.0,0.00022492,2]
[366818458,1750474233456,-406.0,0.00022492,2]
[366818460,1750474233466,-514.84171147,0.000225,2]
[366818462,1750474233475,-501.20512488,0.000225,2]
[366818464,1750474233487,-511.47139621,0.000225,2]
[366818467,1750474233497,-504.17324658,0.000225,2]
[366818470,1750474233507,-624.44453244,0.000225,2]
[366818473,1750474233522,-168.0,0.00022556,2]
[366818475,1750474233532,-510.20039563,0.00022629,2]
[366818477,1750474233542,-500.0,0.00022629,2]
[366818478,1750474233552,-666.0,0.00022636,2]
[366818480,1750474233562,-460.0,0.00022746,2]
[366818482,1750474233573,-487.19331358,0.00022746,2]
[366818484,1750474233583,-460.0,0.00022746,2]
[366818486,1750474233593,-157.22257277,0.00022746,2]
[366818488,1750474233604,-460.0,0.0002276,2]
[366818490,1750474233613,-153.73924575,0.00022795,2]
[366818492,1750474233623,-1000.0,0.000228,8]
[366818493,1750474233633,-459.33,0.000228,2]
[366818495,1750474233644,-460.0,0.00022899,2]
[366818497,1750474233655,-460.0,0.00022899,2]
[366818499,1750474233665,-460.0,0.00022899,2]
[366818500,1750474233675,-1916.56438522,0.000229,8]
[366818501,1750474233686,-168.0,0.00022944,2]
[366818502,1750474233695,-1916.56438522,0.00023003,8]
[366818503,1750474233706,-460.0,0.0002302,2]
[366818504,1750474233716,-460.0,0.0002302,2]
[366818505,1750474233727,-445.07821311,0.00023034,2]
[366818506,1750474233738,-1916.56438522,0.00023107,8]
[366818507,1750474233748,-600.0,0.00023145,2]
[366818508,1750474233758,-500.0,0.00023163,2]
[366818509,1750474233767,-460.0,0.00023173,2]
[366818510,1750474233777,-460.0,0.00023173,2]
[366818511,1750474233788,-460.0,0.00023173,2]
[366818512,1750474233799,-912.62226333,0.00023177,2]
[366818513,1750474233809,-500.0,0.00023178,2]
[366818514,1750474233819,-1916.56438522,0.0002321,8]
[366818515,1750474233829,-500.0,0.00023216,2]
[366818516,1750474233840,-153.73924575,0.00023216,2]
[366818517,1750474233851,-500.0,0.0002324,2]
[366818518,1750474233861,-460.0,0.00023294,2]
[366818519,1750474233871,-460.0,0.00023294,2]
[366818520,1750474233881,-1916.56438522,0.00023314,9]
[366818521,1750474233891,-500.0,0.00023346,2]
[366818522,1750474233902,-600.0,0.00023386,2]
[366818523,1750474233912,-168.0,0.00023396,2]
[366818524,1750474233921,-1916.56438522,0.00023417,9]
[366818525,1750474233931,-460.0,0.00023447,2]
[366818526,1750474233942,-460.0,0.00023447,2]
[366818527,1750474233952,-460.0,0.00023447,2]
[366818528,1750474233962,-500.0,0.00023467,2]
[366818529,1750474233972,-874.959764,0.0002352,4]
[366818530,1750474233983,-1916.56438522,0.00023521,9]
[366818531,1750474233993,-460.0,0.00023568,2]
[366818532,1750474234004,-460.0,0.00023568,2]
[366818533,1750474234014,-1916.56438522,0.00023624,9]
[366818534,1750474234024,-1064.87197581,0.00023627,2]
[366818535,1750474234036,-153.73924575,0.00023638,2]
[366818536,1750474234050,-327.49149719,0.000237,2]
[366818537,1750474234060,-160.0,0.00023713,2]
[366818538,1750474234071,-158.44,0.00023714,10]
[366818539,1750474234081,-153.0,0.00023719,2]
[366818540,1750474234090,-153.0,0.00023719,2]
[366818541,1750474234100,-153.0,0.00023719,2]
[366818542,1750474234111,-153.0,0.00023719,2]
[366818543,1750474234121,-153.0,0.00023719,2]
[366818544,1750474234132,-153.0,0.0002372,2]
[366818545,1750474234142,-153.0,0.0002372,2]
[366818546,1750474234155,-153.0,0.0002372,2]
[366818547,1750474234165,-153.0,0.0002372,2]
[366818548,1750474234175,-153.0,0.0002372,2]
[366818549,1750474234186,-153.0,0.0002372,2]
[366818550,1750474234196,-153.0,0.0002372,2]
[366818551,1750474234206,-153.0,0.0002372,2]
[366818552,1750474234216,-153.0,0.0002372,2]
[366818553,1750474234228,-153.0,0.0002372,2]
[366818554,1750474234238,-460.0,0.00023721,2]
[366818555,1750474234248,-460.0,0.00023721,2]
[366818556,1750474234258,-460.0,0.00023721,2]
[366818557,1750474234268,-153.0,0.00023722,2]
[366818558,1750474234278,-153.0,0.00023722,2]
[366818559,1750474234289,-153.0,0.00023722,2]
[366818560,1750474234298,-153.0,0.00023722,2]
[366818561,1750474234308,-153.0,0.00023722,2]
[366818562,1750474234318,-153.0,0.00023722,2]
[366818563,1750474234327,-153.0,0.00023722,2]
[366818564,1750474234338,-153.0,0.00023722,2]
[366818565,1750474234348,-153.0,0.00023722,2]
[366818566,1750474234357,-153.0,0.00023722,2]
[366818567,1750474234367,-153.0,0.00023722,2]
[366818568,1750474234377,-153.0,0.00023722,2]
[366818569,1750474234386,-153.0,0.00023722,2]
[366818570,1750474234396,-153.0,0.00023722,2]
[366818571,1750474234406,-153.0,0.00023722,2]
[366818572,1750474234416,-153.0,0.00023724,2]
[366818573,1750474234426,-153.0,0.00023724,2]
[366818574,1750474234438,-153.0,0.00023724,2]
[366818575,1750474234448,-153.0,0.00023724,2]
[366818576,1750474234458,-153.0,0.00023724,2]
[366818577,1750474234469,-153.0,0.00023724,2]
[366818578,1750474234479,-153.0,0.00023724,2]
[366818579,1750474234488,-153.0,0.00023724,2]
[366818580,1750474234499,-153.0,0.00023724,2]
[366818581,1750474234509,-153.0,0.00023724,2]
[366818582,1750474234519,-153.0,0.00023724,2]
[366818583,1750474234529,-153.0,0.00023724,2]
[366818584,1750474234539,-153.0,0.00023724,2]
[366818585,1750474234549,-153.0,0.00023724,2]
[366818586,1750474234559,-153.0,0.00023726,2]
[366818587,1750474234569,-153.0,0.00023726,2]
[366818588,1750474234578,-153.0,0.00023726,2]
[366818589,1750474234588,-153.0,0.00023726,2]
[366818590,1750474234598,-153.0,0.00023726,2]
[366818591,1750474234608,-153.0,0.00023726,2]
[366818592,1750474234619,-153.0,0.00023726,2]
[366818593,1750474234629,-153.0,0.00023726,2]
[366818594,1750474234639,-153.0,0.00023727,2]
[366818595,1750474234649,-153.0,0.00023727,2]
[366818596,1750474234659,-153.0,0.00023727,2]
[366818597,1750474234670,-153.0,0.00023727,2]
[366818598,1750474234679,-153.0,0.00023727,2]
[366818599,1750474234690,-153.0,0.00023727,2]
[366818600,1750474234700,-153.0,0.00023727,2]
[366818601,1750474234710,-153.0,0.00023727,2]
[366818602,1750474234720,-153.0,0.00023727,2]
[366818603,1750474234729,-153.0,0.00023727,2]
[366818604,1750474234739,-153.0,0.00023727,2]
[366818605,1750474234748,-153.0,0.00023727,2]
[366818606,1750474234758,-153.0,0.00023727,2]
[366818607,1750474234768,-153.0,0.00023727,2]
[366818608,1750474234779,-153.0,0.00023727,2]
[366818609,1750474234789,-1916.56438522,0.00023728,9]
[366818610,1750474234798,-168.0,0.00023728,2]
[366818611,1750474234809,-327.49149715,0.0002375,2]
[366818612,1750474234819,-505.24847407,0.00023759,2]
[366818613,1750474234829,-50411.43844126,0.0002376,2]
[366818614,1750474234839,-500.0,0.00023787,2]
[366818615,1750474234848,-215.0738,0.00023796,2]
[366818616,1750474234858,-1500.0,0.000238,2]
[366818617,1750474234868,-1118.31,0.000238,7]
[366818618,1750474234877,-327.49149715,0.000238,2]
[366818619,1750474235049,-500.0,0.00023824,2]
[366818620,1750474235062,-1916.56438522,0.00023831,10]
[366818621,1750474235072,-500.0,0.00023832,2]
[366818622,1750474235083,-233.7141174,0.00023842,2]
[366818623,1750474235092,-460.0,0.00023842,2]
[366818624,1750474235102,-327.49149715,0.0002385,2]
[366818625,1750474235112,-500.0,0.00023851,2]
[366818626,1750474235125,-500.0,0.00023867,2]
[366818627,1750474235135,-800.0,0.00023868,2]
[366818628,1750474235145,-3300.0,0.000239,2]
[366818629,1750474235155,-151.0,0.000239,10]
[366818630,1750474235165,-327.49149715,0.000239,2]
[366818631,1750474235178,-44214.85905159,0.000239,2]
[366818632,1750474235224,-303097.00425576,0.000239,2]
[366818882,1750474240838,-460.0,0.00022486,2]
[366818884,1750474240848,-216.78966431,0.00022745,2]
[366818886,1750474240858,-460.0,0.0002276,2]
[366818888,1750474240868,-460.0,0.00023034,2]
[366818890,1750474240878,-460.0,0.00023308,2]
[366818892,1750474240888,-394.14309166,0.00023582,2]
[366818895,1750474240901,-65.85690834,0.00023582,2]
[366818897,1750474240910,-460.0,0.00023856,2]
[366818899,1750474240920,-16688.97906089,0.000239,2]
[366818901,1750474240932,-2606.23366708,0.000239,2]
[366818903,1750474240943,-7850.94779468,0.000239,2]
[366818906,1750474240958,-3089.78207605,0.000239,2]
[366819239,1750474244787,-792.22,0.0002389,10]
[366819241,1750474244798,-913.91859524,0.000239,2]